Cogmind - Beta 14 @@@ ROGUE MODE // 2024.10.06 @ 14:44:47 Player: Carpathian Result: Self-destructed Performance ------------- Evolutions (2) 1000 Regions Visited (4) 800 Robots Destroyed (25) 125 Value Destroyed (847) 847 Prototype IDs (1) 20 Alien Tech Used (0) 0 Bonus (0) 0 TOTAL SCORE: 2792 Bonus ------- None Cogmind --------- Core Integrity 338/550 Matter 160/300 Energy 290/290 System Corruption 0% Temperature Cool (0) Movement Core (600) Ox11 Location -8/Materials Parts ------- > --- POWER (2) -------- Improved Deuterium Engine > --- PROPULSION (2) --- (None) > --- UTILITY (5) ------ Large Storage Unit Advanced Visual Processing Unit Advanced Targeting Computer > --- WEAPON (2) ------- Heavy Assault Rifle Mini Grenade Launcher > --- INVENTORY (15) --- Improved Ion Engine Improved Deuterium Engine Aluminum Leg Aluminum Leg Improved Targeting Computer Advanced Beam Rifle Mining Laser Peak State ------------ > --- POWER ------------ Improved Deuterium Engine > --- PROPULSION ------- Light Treads Light Treads > --- UTILITY ---------- Large Storage Unit Advanced Visual Processing Unit Advanced Targeting Computer Light Armor Plating > --- WEAPON ----------- EM Shotgun Advanced Beam Rifle > --- INVENTORY -------- Improved Ion Engine Improved Deuterium Engine Aluminum Leg Aluminum Leg Improved Targeting Computer Light Assault Rifle Heavy Assault Rifle Mini Grenade Launcher Mining Laser [Rating: 21] Favorites ----------- Power Ion Engine Engine Ion Engine Propulsion Light Treads Treads Light Treads Utility Large Storage Unit Storage Large Storage Unit Processor Improved Targeting Computer Protection Light Armor Plating Weapon Advanced Beam Rifle Energy Gun Advanced Beam Rifle Ballistic Gun Light Assault Rifle Launcher Mini Grenade Launcher Build | -11 -10 -9 -9 -8 ------- Run | Yrd Mat Mat Min Mat Slots Evolved 4 | . . 2 . 2 Power 1 | . . . . 1 Propulsion . | . . . . . Utility 3 | . . 2 . 1 Weapon . | . . . . . Parts Attached 22 | 6 2 7 . 7 Power 3 | 1 . 1 . 1 Engine 3 | 1 . 1 . 1 Core . | . . . . . Reactor . | . . . . . Propulsion 4 | 2 . 2 . . Treads 4 | 2 . 2 . . Leg . | . . . . . Wheel . | . . . . . Hover . | . . . . . Flight . | . . . . . Utility 6 | 1 2 1 . 2 Device . | . . . . . Storage 2 | 1 1 . . . Processor 3 | . 1 . . 2 Hackware . | . . . . . Protection 1 | . . 1 . . Artifact . | . . . . . Weapon 9 | 2 . 3 . 4 Energy Gun 4 | 1 . 3 . . Energy Cannon . | . . . . . Ballistic Gun 3 | 1 . . . 2 Ballistic Cannon . | . . . . . Launcher 2 | . . . . 2 Special Weapon . | . . . . . Impact Weapon . | . . . . . Slashing Weapon . | . . . . . Piercing Weapon . | . . . . . Special Melee Weapon . | . . . . . Unidentified Prototypes 1 | . . 1 . . Parts Lost 6 | . . 1 . 5 Power 1 | . . 1 . . Propulsion 2 | . . . . 2 Utility 1 | . . . . 1 Weapon 2 | . . . . 2 Highest Loss Streak 4 | . . 1 . 4 To Critical Strikes . | . . . . . Average Slot Usage (%) 78 | . 91 74 88 75 Engine 10 | . 14 10 11 9 Treads 20 | . 28 19 22 16 Storage 11 | . 14 11 11 9 Processor 11 | . 5 11 11 15 Protection 3 | . . 1 11 7 Energy Gun 16 | . 14 19 22 11 Ballistic Gun 5 | . 14 1 . 4 Peak Build Rating 21 | 6 8 14 14 21 Average Rating 12 | 4 6 11 14 18 On Entrance 8 | . 6 8 14 14 Naked Turns . | . . . . . Heaviest Build 38 | 12 27 33 33 38 Greatest Support 40 | 40 40 40 40 40 Greatest Overweight (x) 9 | . . 9 . 1 Average Overweight (x) . | . . . . . Largest Inventory Capacity 15 | 8 15 15 15 15 Average Capacity 13 | 7 10 15 15 15 Most Carried 10 | 3 6 8 8 10 Average Carried 6 | 1 3 6 8 8 Final Capacity 15 | 8 15 15 15 15 Final Carried 8 | 3 5 8 8 7 Class Distribution -------------------- 100% | Mutant Dominant Class ---------------- Mutant | -10/Materials Mutant | -9/Materials Mutant | -9/Mines Mutant | -8/Materials Resources | -11 -10 -9 -9 -8 ----------- Run | Yrd Mat Mat Min Mat Matter Collected 416 | 219 48 85 . 64 Remotely . | . . . . . Salvage Created 884 | . 70 328 . 486 Parts 42 | . 3 22 . 17 Haulers Intercepted 1 | . . . . 1 Recyclers Shooed . | . . . . . Parts Field Recycled . | . . . . . Retrieved Matter . | . . . . . Parts Self-Destructed . | . . . . . Prevented . | . . . . . Kills | -11 -10 -9 -9 -8 ------- Run | Yrd Mat Mat Min Mat Combat Hostiles Destroyed 22 | . 2 10 . 10 Guns 15 | . 2 8 . 5 AOE 7 | . . 2 . 5 Classes Destroyed 8 | . 1 4 . 3 Worker 1 | . . 1 . . Hauler 1 | . . . . 1 Recycler 1 | . . . . 1 Swarmer 4 | . . 4 . . Grunt 14 | . 2 3 . 9 Duelist 1 | . . 1 . . Sentry 2 | . . 2 . . Hunter 1 | . . . . 1 Best Kill Streak 5 | . 2 5 . 5 Combat Bots Only 5 | . 2 5 . 5 Max Kills in Single Turn 2 | . 1 2 . 2 Gunslinging . | . . . . . Exploded 2 | . . 2 . 2 Melee . | . . . . . Uniques/NPCs Destroyed . | . . . . . Combat | -11 -10 -9 -9 -8 -------- Run | Yrd Mat Mat Min Mat Hostile Shots Fired 118 | . 5 42 1 70 Missed 30 | . . 8 . 22 Damage Taken 1338 | . 55 467 12 804 Core 329 | . . 117 . 212 Absorbed by Shields . | . . . . . Core Remaining (%) 90 | 100 100 . 70 . Volleys Fired 63 | . 7 24 . 32 Largest 2 | . 2 2 . 2 Hottest 106 | . 60 106 . 106 Shots Fired 110 | . 14 39 . 57 Gun 103 | . 14 39 . 50 Cannon . | . . . . . Launcher 7 | . . . . 7 Special . | . . . . . Kinetic 36 | . 7 . . 29 Thermal 49 | . 7 27 . 15 Explosive 7 | . . . . 7 Electromagnetic 18 | . . 12 . 6 Robot Hit Streak 18 | . 11 13 . 18 Robot Miss Streak 2 | . 1 2 . 2 Penetration Max . | . . . . . Secondary Targets 2 | . . 2 . . Max Gunslinging Chain 1 | . . 1 . . Shots Hit Robots 84 | . 11 32 . 41 Core Hits 51 | . 5 16 . 30 Critical Kills . | . . . . . Critical Parts Destroyed . | . . . . . Critical Strikes 4 | . . 3 . 1 Burn 4 | . . 3 . 1 Melee Attacks . | . . . . . Impact . | . . . . . Slashing . | . . . . . Piercing . | . . . . . Sneak Attacks . | . . . . . Combat Hostiles . | . . . . . Follow-up Attacks . | . . . . . Damage Inflicted 1952 | . 107 577 . 1268 Guns 1262 | . 107 512 . 643 Cannons . | . . . . . Explosions 690 | . . 65 . 625 Melee . | . . . . . Ramming . | . . . . . Kinetic 336 | . 41 . . 295 Thermal 875 | . 66 466 . 343 Explosive 542 | . . . . 542 Electromagnetic 199 | . . 111 . 88 Impact . | . . . . . Slashing . | . . . . . Piercing . | . . . . . Highest Corruption . | . . . . . Average Corruption . | . . . . . Corruption Purged . | . . . . . Corruption Blocked . | . . . . . Overload Shots . | . . . . . Overflow Damage 8 | . . . . 8 Projectiles . | . . . . . Explosions 8 | . . . . 8 Melee . | . . . . . Knockbacks . | . . . . . Impact . | . . . . . Kinetic . | . . . . . Secondary . | . . . . . Self-Inflicted Damage 46 | . . . . 46 Shots 1 | . . . . 1 Rammed . | . . . . . Targets Rammed . | . . . . . Kicked . | . . . . . Crushed . | . . . . . Highest Temperature 380 | . 70 380 . 240 Average Temperature 99 | . 38 133 . 77 Received Heat Transfer 627 | . 30 150 6 441 Effects 1 | . . 1 . . Damage (minor) 1 | . . 1 . . Siege Activations . | . . . . . Robots Corrupted . | . . . . . Combat Hostiles . | . . . . . Parts Fried . | . . . . . Impact Corruptions . | . . . . . Robots Melted . | . . . . . Combat Hostiles . | . . . . . Parts Melted 4 | . . 2 . 2 Heat Transferred 1980 | . 150 1175 . 655 Parts Sabotaged . | . . . . . Parts Stolen . | . . . . . Parts Stripped . | . . . . . Power Chain Reactions 2 | . . 1 . 1 Alert | -11 -10 -9 -9 -8 ------- Run | Yrd Mat Mat Min Mat Peak Influence 368 | . 95 214 52 368 Initial 52 | . . 39 52 20 Average 89 | . 49 111 52 117 Maximum Alert Level 1 | . . 1 . 1 Low Security (%) 95 | 100 100 99 100 84 Level 1 4 | . . . . 15 Level 2 . | . . . . . Level 3 . | . . . . . Level 4 . | . . . . . Level 5 . | . . . . . High Security . | . . . . . Max Security . | . . . . . Squads Dispatched 4 | . 1 1 . 2 Investigation 2 | . . . . 2 Extermination . | . . . . . Reinforcement 2 | . 1 1 . . Assault . | . . . . . Garrison . | . . . . . Intercept . | . . . . . Searches Triggered . | . . . . . Construction Impeded . | . . . . . Haulers Reinforced . | . . . . . Active Scanning Responses . | . . . . . Cargo Convoy Interrupts . | . . . . . Stealth | -11 -10 -9 -9 -8 --------- Run | Yrd Mat Mat Min Mat Distress Signals 2 | . . . . 2 Communications Jammed . | . . . . . Distress Signals . | . . . . . Times Spotted 35 | . 6 14 2 13 Peak Tracking Total 7 | . 3 7 2 6 Tactical Retreats 2 | . . . . 2 Traps | -11 -10 -9 -9 -8 ------- Run | Yrd Mat Mat Min Mat Traps Triggered . | . . . . . Indirectly . | . . . . . Trap Hack Attempts . | . . . . . Triggered . | . . . . . Disarmed . | . . . . . Reprogrammed 4 | . . . . 4 Reused 1 | . . . . 1 Traps Extracted . | . . . . . Installed . | . . . . . Triggered 1 | . . . . 1 Machines | -11 -10 -9 -9 -8 ---------- Run | Yrd Mat Mat Min Mat Machines Disabled 1 | . . . . 1 Max in Single Turn 1 | . . . . 1 Machines Repaired . | . . . . . Machines Dismantled . | . . . . . Machines Sabotaged . | . . . . . Overloaded Fab Kills . | . . . . . Hacking | -11 -10 -9 -9 -8 --------- Run | Yrd Mat Mat Min Mat Machines Accessed 4 | . . 1 . 3 Terminals 4 | . . 1 . 3 Fabricators . | . . . . . Repair Stations . | . . . . . Recycling Units . | . . . . . Scanalyzers . | . . . . . Garrison Access . | . . . . . Total Hacks 8 | . . 3 . 5 Successful 4 | . . 1 . 3 Failed 4 | . . 2 . 2 Catastrophic . | . . . . . Database Lockouts . | . . . . . Manual . | . . . . . Terminals 8 | . . 3 . 5 Fabricators . | . . . . . Repair Stations . | . . . . . Recycling Units . | . . . . . Scanalyzers . | . . . . . Garrison Access . | . . . . . Terminal Hacks 4 | . . 1 . 3 Reprogram Traps 1 | . . . . 1 Hauler Manifests 2 | . . 1 . 1 Zone Layout 1 | . . . . 1 Fabricator Hacks . | . . . . . Repair Station Hacks . | . . . . . Recycling Unit Hacks . | . . . . . Scanalyzer . | . . . . . Garrison Access Hacks . | . . . . . Unauthorized Hacks . | . . . . . Terminals . | . . . . . Fabricators . | . . . . . Repair Stations . | . . . . . Recycling Units . | . . . . . Scanalyzers . | . . . . . Garrison Access . | . . . . . Data Cores Recovered . | . . . . . Used . | . . . . . Hacking Detections 1 | . . . . 1 Full Trace Events 1 | . . . . 1 Feedback Events . | . . . . . Feedback Blocked . | . . . . . Robot Schematics Acquired . | . . . . . Robots Built . | . . . . . Authchips . | . . . . . Time . | . . . . . Total Robot Build Rating . | . . . . . Part Schematics Acquired . | . . . . . Parts Built . | . . . . . Authchips . | . . . . . Time . | . . . . . Total Part Build Rating . | . . . . . Parts Repaired . | . . . . . Time . | . . . . . Parts Recycled . | . . . . . Recycled Matter . | . . . . . Retrieved Matter . | . . . . . Retrieved Components . | . . . . . Parts Scanalyzed . | . . . . . Part Schematics Acquired . | . . . . . Parts Damaged . | . . . . . Bothacking | -11 -10 -9 -9 -8 ------------ Run | Yrd Mat Mat Min Mat Used RIF Installer . | . . . . . Robots Hacked . | . . . . . Non-combat . | . . . . . Combat . | . . . . . Robot Hacks Applied . | . . . . . Relay Couplers Released . | . . . . . Fabnet Peak Effective % . | . . . . . Robots Rewired . | . . . . . Allies Hacked . | . . . . . Hacks Repelled . | . . . . . Allies | -11 -10 -9 -9 -8 -------- Run | Yrd Mat Mat Min Mat Total Allies . | . . . . . Largest Group . | . . . . . Highest-Rated Group . | . . . . . Highest-Rated Ally . | . . . . . Total Orders . | . . . . . Ally Attacks . | . . . . . Total Damage . | . . . . . Kills . | . . . . . Allies Corrupted . | . . . . . Allies Melted . | . . . . . Intel | -11 -10 -9 -9 -8 ------- Run | Yrd Mat Mat Min Mat Robot Analysis Total . | . . . . . Derelict Logs Recovered 1 | . . . 1 . Drone Launches . | . . . . . Drone Recoveries . | . . . . . Exploration | -11 -10 -9 -9 -8 ------------- Run | Yrd Mat Mat Min Mat Turns Passed 1108 | 91 220 449 34 314 Spaces Moved 520 | 55 100 212 22 131 Core 16 | 11 . 5 . . Treads 504 | 44 100 207 22 131 Legs . | . . . . . Wheels . | . . . . . Hover . | . . . . . Flight . | . . . . . Fastest Speed 50 | 50 160 160 160 160 Average Speed 160 | 138 160 167 160 160 Slowest Speed 500 | 160 160 500 160 240 Overloaded Moves . | . . . . . Propulsion Burnouts . | . . . . . Robots Hopped . | . . . . . Cave-ins Triggered . | . . . . . Exploration Rate (%) 15 | 4 19 23 12 21 Regions Visited 4 Branch Regions 1 Pre-discovered Areas . | . . . . . Known Exits Taken . | . . . . . Unknown Exits Taken 4 | 1 1 1 1 . Scrap Searched . | . . . . . Spaces Dug . | . . . . . Terrain Destroyed 45 | . . 2 . 43 Melee . | . . . . . Projectile . | . . . . . AOE 45 | . . 2 . 43 Terrain Rammed . | . . . . . Walls Destroyed . | . . . . . Machines Disabled . | . . . . . Actions | -11 -10 -9 -9 -8 --------- Run | Yrd Mat Mat Min Mat Total 684 | 71 148 268 21 176 Wait 48 | . 35 12 . 1 Move 516 | 54 99 211 21 131 Hop . | . . . . . Pick Up 29 | 10 4 11 . 4 Fast Attach . | . . . . . Attach 16 | 6 1 6 . 3 Detach . | . . . . . Swap 6 | . 1 1 . 4 Drop 6 | 1 1 3 . 1 Fire 63 | . 7 24 . 32 Melee . | . . . . . Ram . | . . . . . Kick . | . . . . . Crush . | . . . . . Escape Stasis . | . . . . . Rewire . | . . . . . Trap . | . . . . . Miscellaneous . | . . . . . Route ------- -11/Scrapyard -10/Materials -9/Materials (discovered 3 exits: [*Min x2] / [*Sto]) -9/Mines -8/Materials (discovered 1 exit: Fac) History --------- Turn | Location | Event 6 | -11/Scrapyard | Discovered new exit (range 15) 92 | -11/Scrapyard | Entered Materials 288 | -10/Materials | Discovered new exit (range 11) 307 | -10/Materials | Build established: Mutant 312 | -10/Materials | Entered another Materials area 312 | -9/Materials | Evolved 2 slots: Utility x2 344 | -9/Materials | Discovered new exit (range 10) 354 | -9/Materials | Discovered new exit (range 15) 661 | -9/Materials | Discovered new exit (range 14) 761 | -9/Materials | Entered Mines 779 | -9/Mines | Learned location of 1 exit from Materials 789 | -9/Mines | Discovered new exit (range 5) 795 | -9/Mines | Entered Materials 795 | -8/Materials | Evolved 2 slots: Power x1, Utility x1 796 | -8/Materials | Identified exit to Factory 1109 | -8/Materials | Self-destructed Last Messages --------------- 01055_ Lgt. Armor Plating destroyed. 01059_ ALERT: Alarm triggered, dispatching investigation squad. 01059_ G-47 Trooper destroyed. 01059_ R-06 Scavenger destroyed. 01060_ K-01 Serf cleans the Matter Pump. 01062_ A-02 Transporter destroyed. 01062_ Matter Pump disabled. 01063_ K-01 Serf cleans the Matter Pump. 01069_ K-01 Serf collects debris. 01074_ Lgt. Treads destroyed. 01075_ K-01 Serf collects debris. 01081_ The unstable cave ceiling collapses. 01086_ Lgt. Assault Rifle destroyed. 01086_ K-01 Serf collects debris. 01091_ G-47 Trooper destroyed. 01094_ Lgt. Treads destroyed. 01096_ Destroyed Imp. Heat Sink. 01096_ G-47 Trooper destroyed. 01099_ The unstable cave ceiling collapses. 01099_ G-47 Trooper destroyed. Map ----- +----------------------------------------------------+ | """ ###### ???????????????????????????????????? | | # ## ???????????????????????????????????? | | # ## ???????????????????????????????????? | | [ ! # ## #???????????????????????????????????? | | [ # ## #???????????????????????????????????? | | # ## #???????????????????????????????????? | | ##+####* ## #???????????????????????????????????? | | ?# #??# ## #???????????????????????????????????? | | ?# #####+### #???????????????????????????????????? | | ?# #??######???????????????????????????? | | ?# ##?# #???????????????????????????? | | ## ### #???????????????????????????? | | + #???????????????????????????? | | ## # #???????????????????????????? | | ?# ######### # #???????????????????????????? | | ?# #???????# # #???????????????????????????? | | ?# #???????# # #???????????????????????????? | | ?# #???????+ + ########????????????????????? | | ?# #???????# # # """ #????????????????????? | | ?# #???????# ##+### "T" #????????????????????? | | ?# ????????# + #????????????????????? | | ?# ????????# # #????????????????????? | | ?# ????????# # #????????????????????? | | ?? ????????# + %= #?????? ###????????? | | ?? ????????####+## ##### # ????? | | ?? ??????????????# #??# @ * % ????? | | ?? ??????????????# *%[[ *% ????? | | ?? ??????????????# # [[! %[ ????? | | ?? ??????????????# ?# # # [ ! """ ?????? | | ?????????????????# ?####### """?????????? | | ?????????????????# ?????????# """?????????? | | ?????????????????# ?????????? ?????????? | | ????????????????? ??????????? ????????? | | ?????????????????###???????????? ???????? | | ????????????????????????????????? ???????? | | ??????????????????????????????????#######????????? | | ?????????????????????????????????????????????????? | | ?????????????????????????????????????????????????? | | | | | | | | | | | | | | | | | | | | | | | | | +----------------------------------------------------+ Best States ------------- Heat Dissipation 31 Energy Generation 16 Energy Capacity 290 Matter Stores 300 Matter Capacity 300 Sight Range 20 Terrain Scan Density 10 Armor Coverage 150 Evasion (%) 40 Targeting Accuracy 8 Recoil Reduction 2 Item Schematics ----------------- None Robot Schematics ------------------ None Fabricated ------------ Nothing Alien Tech Used ----------------- None Achievements -------------- None Challenges ------------ None Game ------ Seed StormChainMask Manual? 0 Play Time 00:11:00 Cumulative 25.7 hours Start 2024.10.06 @ 14:36:46 End 2024.10.06 @ 14:44:47 Sessions 1 Manual Loads 0 Difficulty Rogue Special Mode None Game No. 141 Rogue 141 Adventurer 0 Explorer 0 Win Type - Total 0 Types 0/0/0/0/0/0/0/0/0 Lore% 5 Gallery% 23 Achievement% 17 Wizard Run 0 Options --------- Layout 0 ASCII 0 Keyboard 0 Movement Mouse Keybinds 0 Fullscreen 2 Font 24/Cog Map View 76x50 Zoom Use 0% Tactical HUD 1 Map Filters NONE Filters NONE Steam 1 RUN: cedc9e34-1b7d-4dc9-8e7d-dd93b36a6371